fUSD/lending_fUSD_20240521
["ID","MTS","AMOUNT","RATE_DAILY","PERIOD"]
[327602315,1716250254272,-500.0,0.0003863,6]
[327602316,1716250254283,-500.0,0.0003863,6]
[327602318,1716250254295,-528.08,0.0003863,6]
[327602319,1716250254307,-500.0,0.0003863,6]
[327602321,1716250254319,-193.7388982,0.0003863,6]
[327602322,1716250254330,-1434.41,0.0003863,6]
[327602324,1716250254342,-597.04,0.0003863,6]
[327602325,1716250254353,-500.0,0.0003863,6]
[327602326,1716250254365,-500.0,0.0003863,6]
[327602328,1716250254376,-151.0,0.0003863,14]
[327602330,1716250254390,-500.0,0.0003863,6]
[327602331,1716250254402,-500.0,0.0003863,6]
[327602332,1716250254413,-739.54,0.0003863,6]
[327602334,1716250254425,-558.92,0.0003863,6]
[327602335,1716250254437,-718.6,0.0003863,6]
[327602337,1716250254448,-1308.95,0.0003863,6]
[327602338,1716250254460,-500.0,0.0003863,6]
[327602340,1716250254471,-500.0,0.0003863,6]
[327602341,1716250254483,-500.0,0.0003863,6]
[327602343,1716250254495,-500.0,0.0003863,6]
[327602344,1716250254508,-500.0,0.0003863,6]
[327602346,1716250254524,-854.62,0.0003863,6]
[327602347,1716250254537,-2165.22,0.0003863,6]
[327602349,1716250254551,-653.22,0.0003863,6]
[327602350,1716250254564,-500.0,0.0003863,6]
[327602352,1716250254576,-500.0,0.0003863,6]
[327602353,1716250254589,-612.35,0.0003863,6]
[327602355,1716250254603,-686.91,0.0003863,6]
[327602356,1716250254615,-500.0,0.0003863,6]
[327602358,1716250254627,-502.93,0.0003863,6]
[327602359,1716250254641,-500.0,0.0003863,6]
[327602361,1716250254652,-918.94,0.0003863,6]
[327602362,1716250254664,-545.97,0.0003863,6]
[327602364,1716250254676,-500.0,0.0003863,6]
[327602365,1716250254687,-566.53,0.0003863,6]
[327602367,1716250254700,-500.0,0.0003863,6]
[327602368,1716250254711,-500.0,0.0003863,6]
[327602370,1716250254723,-500.0,0.0003863,6]
[327602371,1716250254735,-515.33,0.0003863,6]
[327602373,1716250254748,-954.01,0.0003863,6]
[327602374,1716250254761,-500.0,0.0003863,6]
[327602376,1716250254775,-500.0,0.0003863,2]
[327602377,1716250254789,-500.0,0.0003863,6]
[327602379,1716250254803,-601.89,0.0003863,6]
[327602380,1716250254817,-500.0,0.0003863,6]
[327602382,1716250254834,-500.0,0.0003863,6]
[327602383,1716250254848,-500.0,0.0003863,6]
[327602385,1716250254861,-732.7,0.0003863,6]
[327602386,1716250254875,-679.17,0.0003863,6]
[327602387,1716250254898,-823.95,0.0003863,6]
[327602389,1716250254912,-500.0,0.0003863,6]
[327602390,1716250254926,-500.0,0.0003863,6]
[327602392,1716250254944,-500.0,0.0003863,6]
[327602393,1716250254958,-500.0,0.0003863,6]
[327602395,1716250254973,-151.0,0.0003863,14]
[327602396,1716250254989,-500.0,0.0003863,6]
[327602398,1716250255003,-164.82,0.0003863,6]
[327602399,1716250255017,-898.39,0.0003863,6]
[327602401,1716250255031,-1408.7,0.0003863,6]
[327602402,1716250255046,-407.01203627,0.0003863,6]
[327602439,1716250256163,-929.74796373,0.0003863,6]
[327602440,1716250256173,-153.184176,0.0003863,14]
[327602442,1716250256183,-151.0,0.0003863,14]
[327602443,1716250256192,-501.98786027,0.0003863,6]
[327602445,1716250256205,-322.87653265,0.0003863,6]
[327602446,1716250256224,-321.29560708,0.0003863,6]
[327602448,1716250256233,-500.0,0.0003863,6]
[327602449,1716250256242,-151.0,0.0003863,14]
[327602450,1716250256252,-500.0,0.0003863,6]
[327602452,1716250256261,-500.0,0.0003863,6]
[327602453,1716250256270,-1598.68,0.0003863,6]
[327602455,1716250256279,-1608.79,0.0003863,6]
[327602456,1716250256289,-464.78439292,0.0003863,6]
[327602458,1716250256301,-35.21560708,0.0003863,6]
[327602459,1716250256310,-677.65439292,0.0003863,6]
[327602460,1716250256325,-264.4956,0.00038356,6]
[327602462,1716250256337,-235.5044,0.00038356,6]
[327602463,1716250256346,-5.77560708,0.0003863,6]
[327602465,1716250256356,-219.35094276,0.0003863,6]
[327602466,1716250256367,-1150.13905724,0.0003863,6]
[327602468,1716250256376,-500.0,0.0003863,6]
[327602469,1716250256385,-640.31,0.0003863,6]
[327602470,1716250256395,-975.81,0.0003863,6]
[327602472,1716250256404,-500.0,0.0003863,6]
[327602473,1716250256413,-2208.57,0.0003863,6]
[327602474,1716250256423,-500.0,0.0003863,6]
[327602476,1716250256433,-308.97039036,0.0003863,6]
[327602477,1716250256444,-191.02960964,0.0003863,6]
[327602479,1716250256454,-500.0,0.0003863,6]
[327602480,1716250256463,-149.62249582,0.0003863,14]
[327602482,1716250256490,-1.37750418,0.0003863,14]
[327602483,1716250256500,-399.76026683,0.0003863,6]
[327602485,1716250256515,-106.63973317,0.0003863,6]
[327602486,1716250256524,-500.0,0.0003863,6]
[327602488,1716250256537,-500.0,0.0003863,6]
[327602489,1716250256547,-594.98,0.0003863,6]
[327602491,1716250256556,-298.16379643,0.0003863,6]
[327602492,1716250256567,-445.95620357,0.0003863,6]
[327602493,1716250256576,-724.83,0.0003863,6]
[327602495,1716250256586,-992.71,0.0003863,6]
[327602496,1716250256596,-500.0,0.0003863,6]
[327602498,1716250256605,-500.0,0.0003863,6]
[327602499,1716250256614,-500.0,0.0003863,6]
[327602500,1716250256624,-2052.19,0.0003863,6]
[327602502,1716250256633,-500.0,0.0003863,6]
[327602503,1716250256642,-2489.63,0.0003863,6]
[327602505,1716250256653,-155.195597,0.0003863,14]
[327602506,1716250256662,-623.87,0.0003863,6]
[327602507,1716250256671,-500.0,0.0003863,6]
[327602509,1716250256680,-500.0,0.0003863,6]
[327602510,1716250256689,-581.9,0.0003863,6]
[327602512,1716250256698,-151.0,0.0003863,14]
[327602513,1716250256708,-500.0,0.0003863,6]
[327602514,1716250256717,-500.0,0.0003863,6]
[327602516,1716250256726,-895.49,0.0003863,6]
[327602517,1716250256735,-1433.4,0.0003863,6]
[327602518,1716250256745,-1737.76,0.0003863,6]
[327602520,1716250256754,-500.0,0.0003863,6]
[327602521,1716250256763,-500.0,0.0003863,6]
[327602523,1716250256772,-504.5,0.0003863,6]
[327602524,1716250256782,-151.0,0.0003863,14]
[327602525,1716250256791,-839.1,0.0003863,6]
[327602527,1716250256801,-151.0,0.0003863,14]
[327602528,1716250256810,-1759.64,0.0003863,6]
[327602530,1716250256820,-554.61,0.0003863,6]
[327602531,1716250256829,-500.0,0.0003863,6]
[327602532,1716250256839,-500.0,0.0003863,6]
[327602534,1716250256848,-500.0,0.0003863,6]
[327602535,1716250256857,-151.0,0.0003863,14]
[327602536,1716250256867,-612.18,0.0003863,6]
[327602538,1716250256876,-500.0,0.0003863,6]
[327602539,1716250256885,-546.08174392,0.0003863,6]
[327602541,1716250256897,-500.0,0.0003863,6]
[327602542,1716250256906,-500.0,0.0003863,6]
[327602543,1716250256915,-878.77,0.0003863,6]
[327602545,1716250256924,-1441.85,0.0003863,6]
[327602546,1716250256934,-849.28,0.0003863,6]
[327602548,1716250256943,-500.0,0.0003863,6]
[327602549,1716250256952,-503.08344597,0.0003863,6]
[327602551,1716250256966,-774.63655403,0.0003863,6]
[327602552,1716250256975,-896.24,0.0003863,6]
[327602553,1716250256985,-151.0,0.0003863,14]
[327602555,1716250256994,-151.0,0.0003863,14]
[327602556,1716250257004,-500.0,0.0003863,6]
[327602557,1716250257013,-151.0,0.0003863,14]
[327602559,1716250257023,-500.0,0.0003863,6]
[327602560,1716250257032,-500.0,0.0003863,6]
[327602561,1716250257041,-338.5950164,0.0003863,6]
[327602563,1716250257054,-261.9549836,0.0003863,6]
[327602564,1716250257063,-19.75284774,0.0003863,6]
[327602566,1716250257074,-303.94329984,0.0003863,6]
[327602568,1716250257115,-176.30385242,0.0003863,6]
[327602570,1716250257124,-219.12808828,0.0003863,6]
[327602575,1716250257236,-280.87191172,0.0003863,6]
[327602576,1716250257246,-152.180005,0.0003863,14]
[327602578,1716250257255,-500.0,0.0003863,6]
[327602579,1716250257265,-113.67775908,0.0003863,6]
[327602581,1716250257295,-1147.94373023,0.0003863,6]
[327602583,1716250257309,-603.70851069,0.0003863,6]
[327602584,1716250257319,-293.11646542,0.0003863,6]
[327602586,1716250257331,-206.88353458,0.0003863,6]
[327602587,1716250257340,-124.15462105,0.0003863,6]
[327602591,1716250257414,-302.418,0.0003863,6]
[327602595,1716250257489,-544.22737895,0.0003863,6]
[327602597,1716250257499,-516.81919321,0.0003863,6]
[327602598,1716250257516,-591.88080679,0.0003863,6]
[327602599,1716250257525,-804.48,0.0003863,6]
[327602601,1716250257537,-500.0,0.0003863,6]
[327602602,1716250257548,-151.0,0.0003863,14]
[327602604,1716250257557,-910.17,0.0003863,6]
[327602605,1716250257566,-860.17,0.0003863,6]
[327602606,1716250257575,-215.67256092,0.0003863,6]
[327602608,1716250257592,-657.96908124,0.00037583,2]
[327602618,1716250257815,-9970.63091876,0.00037583,2]
[327602619,1716250257826,-500.0,0.00038356,6]
[327602621,1716250257836,-1289.77743908,0.0003863,6]
[327602622,1716250257845,-500.0,0.0003863,6]
[327602623,1716250257854,-537.05,0.0003863,6]
[327602625,1716250257863,-500.0,0.0003863,6]
[327602626,1716250257875,-1382.53,0.0003863,6]
[327602628,1716250257883,-600.63,0.0003863,6]
[327602629,1716250257893,-151.0,0.0003863,14]
[327602630,1716250257906,-500.0,0.0003863,6]
[327602632,1716250257915,-870.19,0.0003863,6]
[327602633,1716250257925,-767.99,0.0003863,6]
[327602634,1716250257935,-1090.58,0.0003863,6]
[327602635,1716250257945,-719.75,0.0003863,6]
[327602636,1716250257954,-500.0,0.0003863,6]
[327602637,1716250257964,-1879.12,0.0003863,6]
[327602638,1716250257974,-1036.24,0.0003863,6]
[327602639,1716250257984,-500.0,0.0003863,6]
[327602640,1716250257993,-500.0,0.0003863,6]
[327602641,1716250258003,-500.0,0.0003863,6]
[327602642,1716250258012,-500.0,0.0003863,6]
[327602643,1716250258022,-151.0,0.0003863,14]
[327602644,1716250258031,-537.76,0.0003863,6]
[327602645,1716250258040,-1214.86,0.0003863,6]
[327602646,1716250258050,-832.47,0.0003863,6]
[327602647,1716250258059,-1034.22,0.0003863,6]
[327602648,1716250258068,-538.7873541,0.0003863,6]
[327602649,1716250258077,-151.0,0.0003863,14]
[327602650,1716250258087,-787.79,0.0003863,6]
[327602651,1716250258096,-1949.92,0.0003863,6]
[327602652,1716250258106,-500.0,0.0003863,6]
[327602653,1716250258115,-500.0,0.0003863,6]
[327602654,1716250258124,-151.0,0.0003863,14]
[327602655,1716250258134,-2261.65,0.0003863,6]
[327602656,1716250258144,-1172.97,0.0003863,6]
[327602657,1716250258157,-500.0,0.0003863,6]
[327602658,1716250258167,-546.9,0.0003863,6]
[327602659,1716250258176,-1011.78,0.0003863,6]
[327602660,1716250258186,-500.0,0.0003863,6]
[327602661,1716250258196,-1740.32,0.0003863,6]
[327602662,1716250258205,-514.11,0.0003863,6]
[327602663,1716250258214,-1089.9,0.0003863,6]
[327602664,1716250258224,-1466.45,0.0003863,6]
[327602665,1716250258233,-1674.3,0.0003863,6]
[327602666,1716250258242,-500.0,0.0003863,6]
[327602667,1716250258252,-959.79,0.0003863,6]
[327602668,1716250258261,-560.04,0.0003863,6]
[327602669,1716250258270,-789.89,0.0003863,6]
[327602670,1716250258279,-500.0,0.0003863,6]
[327602671,1716250258289,-2654.6,0.0003863,6]
[327602672,1716250258301,-1041.71,0.0003863,6]
[327602673,1716250258311,-500.0,0.0003863,6]
[327602674,1716250258321,-2239.99,0.0003863,6]
[327602675,1716250258331,-500.0,0.0003863,6]
[327602676,1716250258340,-653.02,0.0003863,6]
[327602677,1716250258350,-151.0,0.0003863,14]
[327602678,1716250258359,-506.44,0.0003863,6]
[327602679,1716250258369,-153.50001266,0.0003863,6]
[327602680,1716250258378,-974.76,0.0003863,6]
[327602681,1716250258388,-2389.11,0.0003863,6]
[327602682,1716250258399,-1015.86,0.0003863,6]
[327602683,1716250258409,-500.0,0.0003863,6]
[327602684,1716250258419,-758.19,0.0003863,6]
[327602685,1716250258428,-500.0,0.0003863,6]
[327602686,1716250258438,-500.0,0.0003863,6]
[327602687,1716250258447,-738.97,0.0003863,6]
[327602688,1716250258456,-743.44,0.0003863,6]
[327602689,1716250258466,-500.0,0.0003863,6]
[327602690,1716250258476,-500.0,0.0003863,6]
[327602691,1716250258485,-526.95,0.0003863,6]
[327602692,1716250258495,-300.0,0.0003863,6]
[327602693,1716250258509,-1405.01,0.0003863,6]
[327602694,1716250258518,-500.0,0.0003863,6]
[327602695,1716250258527,-1071.23,0.0003863,6]
[327602696,1716250258537,-2226.85,0.0003863,6]
[327602697,1716250258548,-151.0,0.0003863,14]
[327602698,1716250258559,-517.28,0.0003863,6]
[327602699,1716250258569,-500.0,0.0003863,6]
[327602700,1716250258578,-500.0,0.0003863,6]
[327602701,1716250258590,-503.78,0.0003863,6]
[327602702,1716250258600,-500.0,0.0003863,6]
[327602703,1716250258609,-500.0,0.0003863,6]
[327602704,1716250258619,-364.84959178,0.0003863,6]
[327602705,1716250258629,-500.0,0.0003863,6]
[327602706,1716250258639,-500.0,0.0003863,6]
[327602707,1716250258649,-500.0,0.0003863,6]
[327602708,1716250258660,-500.0,0.0003863,6]
[327602709,1716250258669,-918.69,0.0003863,6]
[327602710,1716250258680,-528.78,0.0003863,6]
[327602711,1716250258690,-1115.42,0.0003863,6]
[327602712,1716250258700,-500.0,0.0003863,6]
[327602713,1716250258709,-500.0,0.0003863,6]
[327602714,1716250258719,-500.0,0.0003863,6]
[327602715,1716250258729,-500.0,0.0003863,6]
[327602716,1716250258739,-500.0,0.0003863,6]
[327602717,1716250258748,-500.0,0.0003863,6]
[327602718,1716250258758,-546.38661957,0.0003863,6]
[327602720,1716250259296,-339.20338043,0.0003863,6]
[327602722,1716250259307,-414.61,0.0003863,6]
[327602723,1716250259319,-725.2,0.0003863,6]
[327602724,1716250259330,-1308.41,0.0003863,6]
[327602725,1716250259340,-1223.74,0.0003863,6]
[327602727,1716250259353,-500.0,0.0003863,6]
[327602728,1716250259364,-500.0,0.0003863,6]
[327602730,1716250259375,-151.0,0.0003863,14]
[327602731,1716250259388,-500.0,0.0003863,6]
[327602732,1716250259402,-1201.51,0.0003863,6]
[327602734,1716250259413,-1128.81,0.0003863,6]
[327602735,1716250259423,-500.0,0.0003863,6]
[327602737,1716250259433,-782.49,0.0003863,6]
[327602738,1716250259443,-2858.04,0.0003863,6]
[327602739,1716250259452,-500.0,0.0003863,6]
[327602741,1716250259462,-581.14,0.0003863,6]
[327602742,1716250259471,-500.0,0.0003863,6]
[327602743,1716250259480,-151.0,0.0003863,14]
[327602744,1716250259491,-500.0,0.0003863,6]
[327602745,1716250259500,-2201.91,0.0003863,6]
[327602746,1716250259511,-639.13,0.0003863,6]
[327602747,1716250259521,-500.0,0.0003863,6]
[327602748,1716250259531,-1908.25,0.0003863,6]
[327602749,1716250259542,-4869.75,0.0003863,6]
[327602750,1716250259553,-500.0,0.0003863,6]
[327602759,1716250259759,-151.0,0.0003863,14]
[327602760,1716250259782,-1169.61,0.0003863,6]
[327602762,1716250259793,-500.0,0.0003863,6]
[327602763,1716250259803,-419.63265866,0.0003863,6]
[327602765,1716250259813,-916.5,0.0003863,6]
[327602766,1716250259822,-500.0,0.0003863,6]
[327602767,1716250259831,-151.0,0.0003863,14]
[327602769,1716250259840,-764.86,0.0003863,6]
[327602770,1716250259850,-1850.43,0.0003863,6]
[327602772,1716250259859,-500.0,0.0003863,6]
[327602773,1716250259868,-674.58,0.0003863,6]
[327602774,1716250259878,-500.0,0.0003863,6]
[327602776,1716250259887,-976.62,0.0003863,6]
[327602777,1716250259896,-1519.68,0.0003863,6]
[327602779,1716250259907,-545.26,0.0003863,6]
[327602780,1716250259916,-500.0,0.0003863,6]
[327602781,1716250259925,-176.0219279,0.0003863,6]
[327602783,1716250259934,-2609.37,0.0003863,6]
[327602784,1716250259943,-1795.8,0.0003863,6]
[327602785,1716250259952,-1209.49,0.0003863,6]
[327602787,1716250259962,-932.12,0.0003863,6]
[327602788,1716250259971,-11152.83,0.0003863,6]
[327602790,1716250259980,-834.99,0.0003863,6]
[327602791,1716250259990,-151.0,0.0003863,14]
[327602792,1716250259999,-1093.13,0.0003863,6]
[327602794,1716250260009,-500.0,0.0003863,6]
[327602795,1716250260019,-4146.35,0.0003863,6]
[327602797,1716250260028,-706.31,0.0003863,6]
[327602798,1716250260038,-500.0,0.0003863,6]
[327602799,1716250260047,-1341.12,0.0003863,6]
[327602801,1716250260056,-1608.53,0.0003863,6]
[327602802,1716250260066,-1118.5,0.0003863,6]
[327602804,1716250260075,-9133.51,0.0003863,6]
[327602805,1716250260085,-3141.88,0.0003863,6]
[327602806,1716250260094,-500.0,0.0003863,6]
[327602808,1716250260104,-500.0,0.0003863,6]
[327602809,1716250260116,-520.03,0.0003863,6]
[327602811,1716250260127,-600.27,0.0003863,6]
[327602812,1716250260140,-500.0,0.0003863,6]
[327602813,1716250260153,-1498.27,0.0003863,6]
[327602815,1716250260162,-2027.61,0.0003863,6]
[327602816,1716250260171,-3902.16,0.0003863,6]
[327602818,1716250260180,-151.0,0.0003863,14]
[327602819,1716250260189,-387.21,0.0003863,6]
[327602820,1716250260199,-151.0,0.0003863,14]
[327602822,1716250260208,-2342.84,0.0003863,6]
[327602823,1716250260218,-500.0,0.0003863,6]
[327602824,1716250260227,-500.0,0.0003863,6]
[327602826,1716250260237,-579.77,0.0003863,6]
[327602827,1716250260247,-1069.75,0.0003863,6]
[327602829,1716250260257,-500.0,0.0003863,6]
[327602830,1716250260266,-151.0,0.0003863,7]
[327602831,1716250260276,-151.0,0.0003863,14]
[327602833,1716250260286,-500.0,0.0003863,6]
[327602834,1716250260295,-918.15,0.0003863,6]
[327602836,1716250260305,-500.0,0.0003863,6]
[327602837,1716250260315,-930.85,0.0003863,6]
[327602838,1716250260325,-500.0,0.0003863,6]
[327602840,1716250260335,-500.0,0.0003863,6]
[327602841,1716250260344,-3226.04,0.0003863,6]
[327602843,1716250260355,-500.0,0.0003863,6]
[327602844,1716250260365,-5248.24,0.0003863,6]
[327602845,1716250260375,-500.0,0.0003863,6]
[327602847,1716250260385,-8893.21,0.0003863,6]
[327602848,1716250260396,-500.0,0.0003863,6]
[327602850,1716250260408,-500.0,0.0003863,6]
[327602851,1716250260418,-830.05,0.0003863,6]
[327602852,1716250260427,-151.0,0.0003863,14]
[327602854,1716250260437,-500.0,0.0003863,6]
[327602855,1716250260446,-500.0,0.0003863,6]
[327602857,1716250260456,-500.0,0.0003863,6]
[327602858,1716250260465,-742.41,0.0003863,6]
[327602859,1716250260475,-882.22,0.0003863,6]
[327602861,1716250260484,-1443.73,0.0003863,6]
[327602862,1716250260494,-1521.59,0.0003863,6]
[327602863,1716250260507,-1885.22,0.0003863,6]
[327602865,1716250260524,-500.0,0.0003863,6]
[327602866,1716250260535,-595.15,0.0003863,6]
[327602868,1716250260546,-500.0,0.0003863,6]
[327602869,1716250260558,-4062.3,0.0003863,6]
[327602870,1716250260567,-500.0,0.0003863,6]
[327602872,1716250260578,-500.0,0.0003863,6]
[327602873,1716250260588,-500.0,0.0003863,6]
[327602875,1716250260598,-1056.25,0.0003863,6]
[327602876,1716250260607,-1175.32,0.0003863,6]
[327602877,1716250260617,-500.0,0.0003863,6]
[327602879,1716250260626,-159.015914,0.0003863,14]
[327602880,1716250260637,-2490.17,0.0003863,6]
[327602882,1716250260646,-3292.6,0.0003863,6]
[327602883,1716250260657,-1712.22,0.0003863,6]
[327602884,1716250260666,-500.0,0.0003863,6]
[327602886,1716250260675,-500.0,0.0003863,6]
[327602887,1716250260684,-151.0,0.0003863,14]
[327602888,1716250260693,-1961.99,0.0003863,6]
[327602890,1716250260703,-1731.7,0.0003863,6]
[327602891,1716250260714,-500.0,0.0003863,6]
[327602893,1716250260723,-746.04,0.0003863,6]
[327602894,1716250260732,-632.29,0.0003863,6]
[327602895,1716250260741,-500.0,0.0003863,6]
[327602897,1716250260751,-554.84,0.0003863,6]
[327602898,1716250260760,-500.0,0.0003863,6]
[327602900,1716250260770,-500.0,0.0003863,6]
[327602901,1716250260780,-500.0,0.0003863,6]
[327602902,1716250260788,-550.18,0.0003863,6]
[327602904,1716250260797,-576.64,0.0003863,6]
[327602905,1716250260807,-3163.84,0.0003863,6]
[327602907,1716250260816,-1101.04,0.0003863,6]
[327602908,1716250260825,-3035.37,0.0003863,6]
[327602909,1716250260835,-500.0,0.0003863,6]
[327602911,1716250260844,-3040.06,0.0003863,6]
[327602912,1716250260854,-1967.41,0.0003863,6]
[327602914,1716250260863,-1449.51,0.0003863,6]
[327602915,1716250260872,-500.0,0.0003863,6]
[327602916,1716250260881,-2590.11,0.0003863,6]
[327602918,1716250260891,-2623.29,0.0003863,6]
[327602919,1716250260905,-919.13,0.0003863,6]
[327602921,1716250260915,-5255.23,0.0003863,6]
[327602922,1716250260924,-500.0,0.0003863,6]
[327602923,1716250260933,-1196.22,0.0003863,6]
[327602925,1716250260943,-500.0,0.0003863,6]
[327602926,1716250260953,-1719.42,0.0003863,6]
[327602928,1716250260962,-596.19,0.0003863,6]
[327602929,1716250260972,-500.0,0.0003863,6]
[327602930,1716250260981,-753.0,0.0003863,6]
[327602932,1716250260990,-500.0,0.0003863,6]
[327602933,1716250261000,-14604.95,0.0003863,6]
[327602935,1716250261010,-586.25,0.0003863,6]
[327602936,1716250261020,-2060.51,0.0003863,6]
[327602937,1716250261029,-500.0,0.0003863,6]
[327602939,1716250261038,-500.0,0.0003863,6]
[327602940,1716250261049,-740.3,0.0003863,6]
[327602942,1716250261059,-932.77,0.0003863,6]
[327602943,1716250261068,-799.68,0.0003863,6]
[327602944,1716250261079,-500.0,0.0003863,6]
[327602946,1716250261088,-838.21,0.0003863,6]
[327602947,1716250261098,-666.31,0.0003863,6]
[327602948,1716250261107,-151.0,0.0003863,14]
[327602950,1716250261117,-2597.23,0.0003863,6]
[327602951,1716250261127,-1241.77,0.0003863,6]
[327602953,1716250261136,-151.0,0.0003863,14]
[327602954,1716250261145,-1460.55,0.0003863,6]
[327602955,1716250261158,-500.0,0.0003863,6]
[327602957,1716250261167,-500.0,0.0003863,6]
[327602958,1716250261177,-1395.61,0.0003863,6]
[327602959,1716250261186,-500.0,0.0003863,6]
[327602961,1716250261196,-979.16,0.0003863,6]
[327602962,1716250261205,-604.38,0.0003863,6]
[327602964,1716250261215,-952.04,0.0003863,6]
[327602965,1716250261224,-2263.89,0.0003863,6]
[327602966,1716250261234,-584.48,0.0003863,6]
[327602968,1716250261243,-935.95,0.0003863,6]
[327602969,1716250261252,-5588.09,0.0003863,6]
[327602970,1716250261262,-1388.94,0.0003863,6]
[327602972,1716250261271,-856.37,0.0003863,6]
[327602973,1716250261281,-993.92,0.0003863,6]
[327602975,1716250261290,-1733.15,0.0003863,6]
[327602976,1716250261300,-1505.14,0.0003863,6]
[327602977,1716250261310,-1897.8,0.0003863,6]
[327602979,1716250261320,-500.0,0.0003863,6]
[327602980,1716250261330,-962.73,0.0003863,6]
[327602981,1716250261339,-500.0,0.0003863,6]
[327602983,1716250261348,-531.82839816,0.0003863,6]
[327602984,1716250261358,-1148.45,0.0003863,6]
[327602986,1716250261368,-1044.37,0.0003863,6]
[327602987,1716250261377,-500.0,0.0003863,6]
[327602988,1716250261387,-832.34,0.0003863,6]
[327602990,1716250261396,-1650.83,0.0003863,6]
[327602991,1716250261411,-1558.07,0.0003863,6]
[327602993,1716250261420,-500.0,0.0003863,6]
[327602994,1716250261429,-1394.15,0.0003863,6]
[327602995,1716250261438,-583.32,0.0003863,6]
[327602997,1716250261447,-841.54,0.0003863,6]
[327602998,1716250261456,-151.0,0.0003863,14]
[327602999,1716250261465,-10091.11,0.0003863,6]
[327603000,1716250261475,-684.94,0.0003863,6]
[327603001,1716250261484,-694.63,0.0003863,6]
[327603002,1716250261494,-985.220963,0.0003863,14]
[327603003,1716250261506,-500.0,0.0003863,6]
[327603004,1716250261523,-985.220963,0.0003863,14]
[327603005,1716250261533,-500.0,0.0003863,6]
[327603006,1716250261543,-11074.91832663,0.0003863,6]
[327603008,1716250261598,-5504.74167337,0.0003863,6]
[327603009,1716250261608,-1569.95,0.0003863,6]
[327603011,1716250261619,-500.0,0.0003863,6]
[327603012,1716250261629,-918.71,0.0003863,6]
[327603013,1716250261638,-151.0,0.0003863,14]
[327603015,1716250261647,-500.0,0.0003863,6]
[327603016,1716250261660,-1076.96,0.0003863,6]
[327603018,1716250261670,-1207.26,0.0003863,6]
[327603019,1716250261680,-638.44,0.0003863,6]
[327603020,1716250261690,-151.0,0.0003863,14]
[327603022,1716250261700,-1062.42,0.0003863,6]
[327603023,1716250261711,-151.0,0.0003863,14]
[327603024,1716250261721,-151.0,0.0003863,14]
[327603026,1716250261730,-2456.54,0.0003863,6]
[327603027,1716250261740,-700.25,0.0003863,6]
[327603029,1716250261749,-500.0,0.0003863,6]
[327603030,1716250261759,-151.0,0.0003863,14]
[327603031,1716250261769,-1646.33,0.0003863,6]
[327603033,1716250261779,-1644.55,0.0003863,6]
[327603034,1716250261788,-7409.39,0.0003863,6]
[327603036,1716250261797,-654.37,0.0003863,6]
[327603037,1716250261807,-500.0,0.0003863,6]
[327603038,1716250261817,-730.47,0.0003863,6]
[327603040,1716250261826,-500.0,0.0003863,6]